fUST/lending_fUST_20250828
["ID","MTS","AMOUNT","RATE_DAILY","PERIOD"]
[381889742,1756391452171,-480.0,0.00020547,2]
[381889744,1756391452181,-1226.6,0.00020547,2]
[381889746,1756391452191,-481.35,0.00020547,2]
[381889748,1756391452201,-1600.05,0.00020547,2]
[381889751,1756391452212,-1584.4,0.00020547,2]
[381889753,1756391452224,-3015.92,0.00020547,2]
[381889754,1756391452234,-480.0,0.00020547,2]
[381889756,1756391452244,-529.05,0.00020547,2]
[381889758,1756391452254,-480.0,0.00020547,2]
[381889760,1756391452263,-480.0,0.00020547,2]
[381889762,1756391452273,-930.35,0.00020547,2]
[381889764,1756391452283,-480.0,0.00020547,2]
[381889766,1756391452293,-529.2,0.00020547,2]
[381889768,1756391452303,-480.0,0.00020547,2]
[381889770,1756391452312,-480.0,0.00020547,2]
[381889772,1756391452321,-2407.53,0.00020547,2]
[381889774,1756391452331,-2030.12,0.00020547,2]
[381889776,1756391452341,-663.99,0.00020547,2]
[381889778,1756391452350,-762.32,0.00020547,2]
[381889780,1756391452360,-1036.05,0.00020547,2]
[381889782,1756391452370,-480.0,0.00020547,2]
[381889785,1756391452380,-480.0,0.00020547,2]
[381889787,1756391452390,-480.0,0.00020547,2]
[381889789,1756391452399,-480.0,0.00020547,2]
[381889791,1756391452412,-675.72,0.00020547,2]
[381889793,1756391452421,-480.0,0.00020547,2]
[381889795,1756391452430,-480.0,0.00020547,2]
[381889797,1756391452439,-480.0,0.00020547,2]
[381889799,1756391452449,-480.0,0.00020547,2]
[381889801,1756391452459,-480.0,0.00020547,2]
[381889803,1756391452468,-875.36,0.00020547,2]
[381889805,1756391452478,-480.0,0.00020547,2]
[381889807,1756391452487,-483.82,0.00020547,2]
[381889809,1756391452497,-667.34,0.00020547,2]
[381889811,1756391452506,-480.0,0.00020547,2]
[381889813,1756391452516,-480.0,0.00020547,2]
[381889815,1756391452524,-537.34,0.00020547,2]
[381889817,1756391452534,-480.0,0.00020547,2]
[381889819,1756391452543,-952.31,0.00020547,2]
[381889821,1756391452553,-531.0133353,0.00020547,2]
[381889823,1756391452563,-1278.03,0.00020547,2]
[381889825,1756391452572,-480.0,0.00020547,2]
[381889827,1756391452581,-480.0,0.00020547,2]
[381889829,1756391452591,-1574.41,0.00020547,2]
[381889831,1756391452600,-480.0,0.00020547,2]
[381889833,1756391452610,-151.0,0.00020547,2]
[381889835,1756391452619,-580.56,0.00020547,2]
[381889837,1756391452628,-2040.78,0.00020547,2]
[381889839,1756391452638,-1688.97,0.00020547,2]
[381889841,1756391452649,-480.0,0.00020547,2]
[381889843,1756391452659,-1733.78,0.00020547,2]
[381889845,1756391452669,-480.0,0.00020547,2]
[381889847,1756391452679,-480.0,0.00020547,2]
[381889849,1756391452689,-1345.71,0.00020547,2]
[381889851,1756391452700,-480.0,0.00020547,2]
[381889853,1756391452709,-480.0,0.00020547,2]
[381889855,1756391452718,-480.0,0.00020547,2]
[381889857,1756391452727,-480.0,0.00020547,2]
[381889859,1756391452738,-480.0,0.00020547,2]
[381889861,1756391452747,-480.0,0.00020547,2]
[381889863,1756391452756,-1013.18,0.00020547,2]
[381889865,1756391452765,-480.0,0.00020547,2]
[381889867,1756391452774,-480.0,0.00020547,2]
[381889869,1756391452784,-151.0,0.00020547,2]
[381889871,1756391452794,-480.0,0.00020547,2]
[381889873,1756391452804,-745.71,0.00020547,2]
[381889875,1756391452813,-652.06,0.00020547,2]
[381889877,1756391452823,-565.51,0.00020547,2]
[381889879,1756391452832,-480.0,0.00020547,2]
[381889881,1756391452842,-480.0,0.00020547,2]
[381889883,1756391452851,-644.37,0.00020547,2]
[381889885,1756391452861,-480.0,0.00020547,2]
[381889887,1756391452870,-480.0,0.00020547,2]
[381889889,1756391452880,-480.0,0.00020547,2]
[381889891,1756391452889,-822.13,0.00020547,2]
[381889893,1756391452898,-2187.09,0.00020547,2]
[381889895,1756391452907,-480.0,0.00020547,2]
[381889897,1756391452917,-480.0,0.00020547,2]
[381889899,1756391452926,-480.0,0.00020547,2]
[381889901,1756391452936,-1500.0,0.00020568,2]
[381889904,1756391452946,-1474.67205194,0.00020568,2]
[381889906,1756391452956,-1500.0,0.00020568,2]
[381889908,1756391452965,-573.91355897,0.00020568,2]
[381889909,1756391452976,-160.0,0.00020594,2]
[381889911,1756391452985,-168.0,0.00020686,2]
[381889913,1756391452995,-3275.6180291,0.00020722,2]
[381889915,1756391453004,-154.5604341,0.00020731,2]
[381889917,1756391453013,-294.545536,0.00020731,2]
[381889919,1756391453022,-322.3722725,0.00020731,2]
[381889921,1756391453032,-294.545536,0.00020731,2]
[381889923,1756391453043,-306.0,0.00020731,2]
[381889925,1756391453055,-153.0,0.00020731,2]
[381889927,1756391453065,-258.4844122,0.00020731,2]
[381889929,1756391453074,-153.0,0.00020731,2]
[381889931,1756391453085,-153.0,0.00020731,2]
[381889933,1756391453095,-152.684834,0.00020733,3]
[381889935,1756391453104,-153.198705,0.00020733,3]
[381889937,1756391453114,-152.684834,0.0002075,4]
[381889939,1756391453126,-152.684834,0.00020808,10]
[381889941,1756391453136,-480.0,0.00020821,2]
[381889943,1756391453145,-480.0,0.00020821,2]
[381889945,1756391453155,-480.0,0.00020821,2]
[381889947,1756391453164,-480.0,0.00020821,2]
[381889949,1756391453174,-480.0,0.00020821,2]
[381889951,1756391453183,-480.0,0.00020821,2]
[381889953,1756391453192,-328.41699475,0.00020821,2]
[381889955,1756391453202,-480.0,0.00020821,2]
[381889957,1756391453211,-480.0,0.00020821,2]
[381889959,1756391453222,-480.0,0.00020821,2]
[381889960,1756391453231,-480.0,0.00020821,2]
[381889962,1756391453241,-480.0,0.00020821,2]
[381889964,1756391453250,-480.0,0.00020821,2]
[381889966,1756391453259,-501.04,0.00020821,2]
[381889968,1756391453270,-480.0,0.00020821,2]
[381889970,1756391453279,-480.0,0.00020821,2]
[381889972,1756391453289,-527.73,0.00020821,2]
[381889974,1756391453298,-480.0,0.00020821,2]
[381889976,1756391453310,-480.0,0.00020821,2]
[381889978,1756391453326,-872.44,0.00020821,2]
[381889980,1756391453337,-480.0,0.00020821,2]
[381889983,1756391453346,-480.0,0.00020821,2]
[381889984,1756391453356,-480.0,0.00020821,2]
[381889986,1756391453365,-480.0,0.00020821,2]
[381889988,1756391453375,-480.0,0.00020821,2]
[381889990,1756391453384,-480.0,0.00020821,2]
[381889992,1756391453393,-480.0,0.00020821,2]
[381889994,1756391453403,-480.0,0.00020821,2]
[381889996,1756391453413,-480.0,0.00020821,2]
[381889998,1756391453422,-537.9,0.00020821,2]
[381890000,1756391453431,-480.0,0.00020821,2]
[381890002,1756391453441,-480.0,0.00020821,2]
[381890004,1756391453450,-480.0,0.00020821,2]
[381890006,1756391453459,-278.34553523,0.00020821,2]
[381890008,1756391453472,-480.0,0.00020821,2]
[381890009,1756391453481,-480.0,0.00020821,2]
[381890011,1756391453491,-480.0,0.00020821,2]
[381890013,1756391453501,-480.0,0.00020821,2]
[381890015,1756391453510,-480.0,0.00020821,2]
[381890017,1756391453520,-480.0,0.00020821,2]
[381890019,1756391453530,-480.0,0.00020821,2]
[381890021,1756391453540,-480.0,0.00020821,2]
[381890023,1756391453549,-480.0,0.00020821,2]
[381890025,1756391453558,-488.44,0.00020821,2]
[381890027,1756391453568,-480.0,0.00020821,2]
[381890029,1756391453577,-480.0,0.00020821,2]
[381890031,1756391453586,-480.0,0.00020821,2]
[381890033,1756391453597,-480.0,0.00020821,2]
[381890035,1756391453606,-1014.39,0.00020821,2]
[381890037,1756391453615,-480.0,0.00020821,2]
[381890039,1756391453625,-480.0,0.00020821,2]
[381890041,1756391453635,-480.0,0.00020821,2]
[381890043,1756391453644,-480.0,0.00020821,2]
[381890045,1756391453654,-480.0,0.00020821,2]
[381890047,1756391453664,-480.0,0.00020821,2]
[381890049,1756391453674,-1521.9,0.00020821,2]
[381890051,1756391453683,-480.0,0.00020821,2]
[381890053,1756391453693,-753.14,0.00020821,2]
[381890055,1756391453703,-2013.03,0.00020821,2]
[381890057,1756391453712,-480.0,0.00020821,2]
[381890059,1756391453723,-1226.6,0.00020821,2]
[381890061,1756391453732,-481.35,0.00020821,2]
[381890063,1756391453742,-1600.05,0.00020821,2]
[381890065,1756391453752,-1584.4,0.00020821,2]
[381890067,1756391453762,-3015.92,0.00020821,2]
[381890069,1756391453771,-480.0,0.00020821,2]
[381890070,1756391453781,-529.05,0.00020821,2]
[381890073,1756391453790,-480.0,0.00020821,2]
[381890074,1756391453800,-480.0,0.00020821,2]
[381890076,1756391453809,-930.35,0.00020821,2]
[381890078,1756391453820,-480.0,0.00020821,2]
[381890080,1756391453829,-529.2,0.00020821,2]
[381890082,1756391453840,-480.0,0.00020821,2]
[381890084,1756391453853,-480.0,0.00020821,2]
[381890086,1756391453862,-2407.53,0.00020821,2]
[381890088,1756391453872,-2030.12,0.00020821,2]
[381890090,1756391453881,-663.99,0.00020821,2]
[381890092,1756391453890,-762.32,0.00020821,2]
[381890094,1756391453900,-1036.05,0.00020821,2]
[381890096,1756391453912,-480.0,0.00020821,2]
[381890098,1756391453921,-480.0,0.00020821,2]
[381890100,1756391453931,-480.0,0.00020821,2]
[381890102,1756391453940,-480.0,0.00020821,2]
[381890104,1756391453949,-480.0,0.00020821,2]
[381890106,1756391453959,-480.0,0.00020821,2]
[381890107,1756391453968,-675.72,0.00020821,2]
[381890108,1756391453978,-480.0,0.00020821,2]
[381890109,1756391453988,-480.0,0.00020821,2]
[381890110,1756391453997,-480.0,0.00020821,2]
[381890111,1756391454007,-875.36,0.00020821,2]
[381890112,1756391454017,-480.0,0.00020821,2]
[381890113,1756391454026,-483.82,0.00020821,2]
[381890114,1756391454036,-667.34,0.00020821,2]
[381890115,1756391454047,-480.0,0.00020821,2]
[381890116,1756391454057,-480.0,0.00020821,2]
[381890117,1756391454066,-537.34,0.00020821,2]
[381890118,1756391454075,-480.0,0.00020821,2]
[381890119,1756391454086,-952.31,0.00020821,2]
[381890120,1756391454095,-1278.03,0.00020821,2]
[381890121,1756391454104,-480.0,0.00020821,2]
[381890122,1756391454114,-201.5493602,0.00020821,2]
[381890123,1756391454124,-1574.41,0.00020821,2]
[381890124,1756391454133,-480.0,0.00020821,2]
[381890126,1756391454143,-580.56,0.00020821,2]
[381890128,1756391454153,-2040.78,0.00020821,2]
[381890130,1756391454163,-1688.97,0.00020821,2]
[381890132,1756391454172,-480.0,0.00020821,2]
[381890134,1756391454182,-1733.78,0.00020821,2]
[381890136,1756391454192,-480.0,0.00020821,2]
[381890138,1756391454201,-480.0,0.00020821,2]
[381890140,1756391454211,-1345.71,0.00020821,2]
[381890142,1756391454222,-480.0,0.00020821,2]
[381890144,1756391454231,-480.0,0.00020821,2]
[381890146,1756391454240,-480.0,0.00020821,2]
[381890148,1756391454250,-480.0,0.00020821,2]
[381890150,1756391454260,-480.0,0.00020821,2]
[381890152,1756391454269,-480.0,0.00020821,2]
[381890154,1756391454279,-1013.18,0.00020821,2]
[381890156,1756391454289,-480.0,0.00020821,2]
[381890158,1756391454298,-480.0,0.00020821,2]
[381890160,1756391454308,-480.0,0.00020821,2]
[381890162,1756391454318,-745.71,0.00020821,2]
[381890164,1756391454327,-652.06,0.00020821,2]
[381890166,1756391454337,-565.51,0.00020821,2]
[381890168,1756391454346,-480.0,0.00020821,2]
[381890170,1756391454356,-480.0,0.00020821,2]
[381890172,1756391454366,-644.37,0.00020821,2]
[381890174,1756391454376,-480.0,0.00020821,2]
[381890176,1756391454386,-480.0,0.00020821,2]
[381890178,1756391454396,-480.0,0.00020821,2]
[381890180,1756391454405,-822.13,0.00020821,2]
[381890182,1756391454415,-2187.09,0.00020821,2]
[381890184,1756391454425,-196.59610512,0.00020821,2]
[381890186,1756391454435,-480.0,0.00020821,2]
[381890188,1756391454445,-480.0,0.00020821,2]
[381890190,1756391454454,-1500.0,0.00020868,2]
[381890192,1756391454463,-162.67725997,0.00020868,2]
[381890194,1756391454473,-873.9302177,0.00020868,2]
[381890196,1756391454483,-1500.0,0.00020868,2]
[381890198,1756391454493,-1500.0,0.00020868,2]
[381890200,1756391454503,-1500.0,0.00020868,2]
[381890202,1756391454512,-1500.0,0.00020868,2]
[381890204,1756391454522,-1500.0,0.00020868,2]
[381890206,1756391454531,-1500.0,0.00020868,2]
[381890208,1756391454540,-365.07033448,0.00020944,2]
[381890213,1756391454581,-586.84147924,0.00020978,2]
[381890215,1756391454591,-2407.82912697,0.0002098,2]
[381890217,1756391454600,-397.1809285,0.00020986,2]
[381890219,1756391454610,-152.684834,0.00021,5]
[381890221,1756391454621,-6579.09041627,0.00021,5]
[381890223,1756391454635,-47237.46949862,0.00021,5]
[381890225,1756391454645,-324.01163657,0.00021,2]
[381890227,1756391454654,-168.0,0.00021,2]
[381890229,1756391454664,-600.0,0.0002104,2]
[381890231,1756391454673,-1500.0,0.00021068,2]
[381890233,1756391454682,-338.04162689,0.00021068,2]
[381890235,1756391454691,-1500.0,0.00021068,2]
[381890237,1756391454701,-1500.0,0.00021068,2]
[381890239,1756391454710,-480.0,0.00021095,2]
[381890241,1756391454719,-480.0,0.00021095,2]
[381890243,1756391454729,-591.29139867,0.00021095,2]
[381890245,1756391454737,-480.0,0.00021095,2]
[381890247,1756391454747,-500.81414152,0.00021095,2]
[381890249,1756391454757,-480.0,0.00021095,2]
[381890251,1756391454766,-480.0,0.00021095,2]
[381890253,1756391454775,-480.0,0.00021095,2]
[381890255,1756391454784,-600.6046069,0.00021095,2]
[381890257,1756391454794,-173.52991445,0.00021095,2]
[381890259,1756391454803,-480.0,0.00021095,2]
[381890261,1756391454813,-480.0,0.00021095,2]
[381890263,1756391454822,-501.04,0.00021095,2]
[381890265,1756391454831,-480.0,0.00021095,2]
[381890267,1756391454840,-480.0,0.00021095,2]
[381890269,1756391454850,-527.73,0.00021095,2]
[381890271,1756391454861,-151.0,0.00021095,2]
[381890273,1756391454870,-480.0,0.00021095,2]
[381890275,1756391454879,-628.31386687,0.00021095,2]
[381890277,1756391454889,-151.0,0.00021095,2]
[381890279,1756391454898,-872.44,0.00021095,2]
[381890281,1756391454907,-480.0,0.00021095,2]
[381890283,1756391454916,-480.0,0.00021095,2]
[381890285,1756391454925,-480.0,0.00021095,2]
[381890286,1756391454934,-480.0,0.00021095,2]
[381890288,1756391454944,-480.0,0.00021095,2]
[381890290,1756391454953,-480.0,0.00021095,2]
[381890292,1756391454963,-480.0,0.00021095,2]
[381890295,1756391454974,-480.0,0.00021095,2]
[381890297,1756391454983,-480.0,0.00021095,2]
[381890299,1756391454992,-537.9,0.00021095,2]
[381890300,1756391455001,-480.0,0.00021095,2]
[381890302,1756391455010,-480.0,0.00021095,2]
[381890304,1756391455019,-480.0,0.00021095,2]
[381890306,1756391455029,-480.0,0.00021095,2]
[381890308,1756391455038,-565.37419188,0.00021095,2]
[381890310,1756391455050,-480.0,0.00021095,2]
[381890312,1756391455060,-480.0,0.00021095,2]
[381890314,1756391455069,-480.0,0.00021095,2]
[381890316,1756391455079,-480.0,0.00021095,2]
[381890318,1756391455089,-480.0,0.00021095,2]
[381890320,1756391455098,-480.0,0.00021095,2]
[381890322,1756391455108,-480.0,0.00021095,2]
[381890324,1756391455118,-488.44,0.00021095,2]
[381890327,1756391455128,-480.0,0.00021095,2]
[381890329,1756391455137,-480.0,0.00021095,2]
[381890330,1756391455146,-480.0,0.00021095,2]
[381890332,1756391455155,-480.0,0.00021095,2]
[381890335,1756391455164,-1014.39,0.00021095,2]
[381890336,1756391455173,-480.0,0.00021095,2]
[381890338,1756391455183,-480.0,0.00021095,2]
[381890340,1756391455192,-480.0,0.00021095,2]
[381890342,1756391455202,-480.0,0.00021095,2]
[381890344,1756391455212,-480.0,0.00021095,2]
[381890346,1756391455222,-480.0,0.00021095,2]
[381890348,1756391455231,-1521.9,0.00021095,2]
[381890350,1756391455241,-480.0,0.00021095,2]
[381890352,1756391455250,-753.14,0.00021095,2]
[381890354,1756391455260,-2013.03,0.00021095,2]
[381890356,1756391455269,-480.0,0.00021095,2]
[381890358,1756391455278,-1226.6,0.00021095,2]
[381890360,1756391455288,-481.35,0.00021095,2]
[381890363,1756391455298,-1600.05,0.00021095,2]
[381890365,1756391455307,-1584.4,0.00021095,2]
[381890367,1756391455317,-3015.92,0.00021095,2]
[381890369,1756391455326,-480.0,0.00021095,2]
[381890371,1756391455335,-529.05,0.00021095,2]
[381890373,1756391455344,-480.0,0.00021095,2]
[381890375,1756391455353,-480.0,0.00021095,2]
[381890377,1756391455363,-930.35,0.00021095,2]
[381890379,1756391455372,-480.0,0.00021095,2]
[381890381,1756391455382,-529.2,0.00021095,2]
[381890383,1756391455391,-480.0,0.00021095,2]
[381890385,1756391455401,-480.0,0.00021095,2]
[381890387,1756391455412,-2407.53,0.00021095,2]
[381890389,1756391455422,-2030.12,0.00021095,2]
[381890391,1756391455431,-663.99,0.00021095,2]
[381890393,1756391455441,-762.32,0.00021095,2]
[381890395,1756391455450,-1036.05,0.00021095,2]
[381890397,1756391455459,-480.0,0.00021095,2]
[381890399,1756391455468,-519.16876661,0.00021095,2]
[381890401,1756391455478,-480.0,0.00021095,2]
[381890403,1756391455487,-480.0,0.00021095,2]
[381890405,1756391455496,-480.0,0.00021095,2]
[381890407,1756391455505,-480.0,0.00021095,2]
[381890408,1756391455514,-675.72,0.00021095,2]
[381890410,1756391455523,-480.0,0.00021095,2]
[381890412,1756391455533,-480.0,0.00021095,2]
[381890414,1756391455542,-480.0,0.00021095,2]
[381890416,1756391455551,-875.36,0.00021095,2]
[381890418,1756391455561,-480.0,0.00021095,2]
[381890420,1756391455570,-483.82,0.00021095,2]
[381890422,1756391455580,-667.34,0.00021095,2]
[381890424,1756391455590,-480.0,0.00021095,2]
[381890427,1756391455600,-480.0,0.00021095,2]
[381890429,1756391455609,-537.34,0.00021095,2]
[381890430,1756391455618,-480.0,0.00021095,2]
[381890432,1756391455628,-952.31,0.00021095,2]
[381890435,1756391455638,-1278.03,0.00021095,2]
[381890437,1756391455647,-480.0,0.00021095,2]
[381890438,1756391455655,-1574.41,0.00021095,2]
[381890441,1756391455665,-480.0,0.00021095,2]
[381890442,1756391455674,-580.56,0.00021095,2]
[381890445,1756391455684,-2040.78,0.00021095,2]
[381890447,1756391455693,-1688.97,0.00021095,2]
[381890449,1756391455703,-480.0,0.00021095,2]
[381890451,1756391455712,-1733.78,0.00021095,2]
[381890452,1756391455722,-480.0,0.00021095,2]
[381890454,1756391455731,-480.0,0.00021095,2]
[381890457,1756391455740,-1345.71,0.00021095,2]
[381890459,1756391455749,-480.0,0.00021095,2]
[381890461,1756391455758,-480.0,0.00021095,2]
[381890463,1756391455767,-480.0,0.00021095,2]
[381890465,1756391455776,-480.0,0.00021095,2]
[381890467,1756391455785,-480.0,0.00021095,2]
[381890469,1756391455795,-480.0,0.00021095,2]
[381890471,1756391455804,-1013.18,0.00021095,2]
[381890473,1756391455814,-480.0,0.00021095,2]
[381890475,1756391455823,-151.0,0.00021095,2]
[381890477,1756391455833,-480.0,0.00021095,2]
[381890479,1756391455842,-480.0,0.00021095,2]
[381890481,1756391455851,-745.71,0.00021095,2]
[381890483,1756391455860,-652.06,0.00021095,2]
[381890485,1756391455870,-565.51,0.00021095,2]
[381890487,1756391455879,-480.0,0.00021095,2]
[381890489,1756391455888,-480.0,0.00021095,2]
[381890491,1756391455897,-644.37,0.00021095,2]
[381890493,1756391455906,-480.0,0.00021095,2]
[381890495,1756391455916,-480.0,0.00021095,2]
[381890497,1756391455925,-480.0,0.00021095,2]
[381890499,1756391455935,-822.13,0.00021095,2]
[381890501,1756391455944,-2187.09,0.00021095,2]
[381890503,1756391455953,-480.0,0.00021095,2]
[381890505,1756391455963,-480.0,0.00021095,2]
[381890507,1756391455972,-152.684834,0.000211,4]
[381890509,1756391455981,-153.198705,0.000211,4]
[381890511,1756391455990,-2000.0,0.00021116,2]
[381890513,1756391455999,-2000.0,0.00021116,2]
[381890515,1756391456009,-260.0,0.00021142,2]
[381890517,1756391456018,-152.684834,0.00021205,10]
[381890519,1756391456027,-153.198705,0.00021205,10]
[381890521,1756391456036,-152.684834,0.0002121,5]
[381890523,1756391456047,-153.198705,0.0002121,5]
[381890524,1756391456056,-4000.0,0.0002125,4]
[381890526,1756391456066,-151.0,0.00021253,2]
[381890528,1756391456075,-600.0,0.00021259,2]
[381890530,1756391456084,-100000.0,0.00021263,2]
[381890533,1756391456094,-173.72917618,0.00021269,2]
[381890534,1756391456103,-152.684834,0.00021274,3]
[381890536,1756391456112,-153.198705,0.00021274,3]
[381890539,1756391456122,-168.0,0.00021339,2]
[381890540,1756391456131,-239.55698976,0.00021369,2]
[381890542,1756391456141,-480.0,0.00021369,2]
[381890544,1756391456150,-480.0,0.00021369,2]
[381890546,1756391456159,-216.51251841,0.00021369,2]
[381890548,1756391456168,-328.60089484,0.00021369,2]
[381890550,1756391456177,-480.0,0.00021369,2]
[381890552,1756391456186,-480.0,0.00021369,2]
[381890554,1756391456195,-480.0,0.00021369,2]
[381890556,1756391456204,-550.91522694,0.00021369,2]
[381890558,1756391456214,-501.04,0.00021369,2]
[381890560,1756391456224,-480.0,0.00021369,2]
[381890562,1756391456234,-480.0,0.00021369,2]
[381890564,1756391456243,-527.73,0.00021369,2]
[381890566,1756391456252,-480.0,0.00021369,2]
[381890568,1756391456262,-176.07738,0.00021369,2]
[381890570,1756391456272,-872.44,0.00021369,2]
[381890572,1756391456281,-480.0,0.00021369,2]
[381890573,1756391456290,-480.0,0.00021369,2]
[381890575,1756391456299,-480.0,0.00021369,2]
[381890577,1756391456309,-480.0,0.00021369,2]
[381890579,1756391456318,-480.0,0.00021369,2]
[381890581,1756391456328,-480.0,0.00021369,2]
[381890583,1756391456339,-480.0,0.00021369,2]
[381890585,1756391456349,-480.0,0.00021369,2]
[381890586,1756391456359,-454.71644197,0.00021369,2]
[381890588,1756391456368,-537.9,0.00021369,2]
[381890590,1756391456377,-480.0,0.00021369,2]
[381890592,1756391456387,-392.99604335,0.00021369,2]
[381890594,1756391456396,-480.0,0.00021369,2]
[381890596,1756391456406,-480.0,0.00021369,2]
[381890597,1756391456415,-480.0,0.00021369,2]
[381890599,1756391456425,-480.0,0.00021369,2]
[381890601,1756391456435,-480.0,0.00021369,2]
[381890603,1756391456444,-480.0,0.00021369,2]
[381890605,1756391456453,-480.0,0.00021369,2]
[381890607,1756391456463,-480.0,0.00021369,2]
[381890609,1756391456473,-480.0,0.00021369,2]
[381890610,1756391456482,-488.44,0.00021369,2]
[381890612,1756391456492,-528.47586833,0.00021369,2]
[381890614,1756391456501,-480.0,0.00021369,2]
[381890616,1756391456511,-480.0,0.00021369,2]
[381890618,1756391456521,-374.18666617,0.00021369,2]
[381890620,1756391456530,-1014.39,0.00021369,2]
[381890622,1756391456539,-480.0,0.00021369,2]
[381890624,1756391456549,-480.0,0.00021369,2]
[381890625,1756391456559,-367.70221732,0.00021369,2]
[381890627,1756391456569,-480.0,0.00021369,2]
[381890629,1756391456578,-480.0,0.00021369,2]
[381890631,1756391456588,-480.0,0.00021369,2]
[381890633,1756391456598,-1521.9,0.00021369,2]
[381890635,1756391456608,-480.0,0.00021369,2]
[381890637,1756391456618,-753.14,0.00021369,2]
[381890639,1756391456628,-2013.03,0.00021369,2]
[381890640,1756391456637,-480.0,0.00021369,2]
[381890642,1756391456647,-1226.6,0.00021369,2]
[381890644,1756391456656,-481.35,0.00021369,2]
[381890646,1756391456666,-1600.05,0.00021369,2]
[381890648,1756391456676,-1584.4,0.00021369,2]
[381890650,1756391456685,-3015.92,0.00021369,2]
[381890651,1756391456694,-480.0,0.00021369,2]
[381890653,1756391456704,-529.05,0.00021369,2]
[381890655,1756391456714,-480.0,0.00021369,2]
[381890657,1756391456724,-480.0,0.00021369,2]
[381890658,1756391456733,-930.35,0.00021369,2]
[381890660,1756391456743,-480.0,0.00021369,2]
[381890662,1756391456752,-529.2,0.00021369,2]
[381890664,1756391456761,-332.96215568,0.00021369,2]
[381890666,1756391456771,-480.0,0.00021369,2]
[381890668,1756391456781,-2407.53,0.00021369,2]
[381890670,1756391456790,-2030.12,0.00021369,2]
[381890671,1756391456800,-663.99,0.00021369,2]
[381890673,1756391456809,-762.32,0.00021369,2]
[381890675,1756391456819,-1036.05,0.00021369,2]
[381890677,1756391456828,-480.0,0.00021369,2]
[381890679,1756391456837,-264.81544019,0.00021369,2]
[381890681,1756391456847,-480.0,0.00021369,2]
[381890683,1756391456856,-480.0,0.00021369,2]
[381890684,1756391456865,-166.7714913,0.00021369,2]
[381890686,1756391456875,-675.72,0.00021369,2]
[381890688,1756391456884,-480.0,0.00021369,2]
[381890690,1756391456894,-480.0,0.00021369,2]
[381890692,1756391456903,-480.0,0.00021369,2]
[381890694,1756391456912,-875.36,0.00021369,2]
[381890695,1756391456922,-480.0,0.00021369,2]
[381890697,1756391456932,-483.82,0.00021369,2]
[381890699,1756391456941,-667.34,0.00021369,2]
[381890701,1756391456950,-537.34,0.00021369,2]
[381890703,1756391456960,-480.0,0.00021369,2]
[381890705,1756391456969,-573.88376594,0.00021369,2]
[381890707,1756391456982,-480.0,0.00021369,2]
[381890709,1756391456991,-952.31,0.00021369,2]
[381890711,1756391457004,-1278.03,0.00021369,2]